Cogmind - Beta 10.2 @@@ ROGUE MODE // 2021.01.12 @ 20:08:34 Player: Luigi Panache Result: Destroyed by B-86 Titan with Matter Neutralizer Performance ------------- Evolutions (5) 2500 Regions Visited (14) 2800 Robots Destroyed (74) 370 Value Destroyed (2749) 2749 Prototype IDs (2) 40 Alien Tech Used (0) 0 Bonus (1973) 1973 TOTAL SCORE: 10432 Bonus ------- High Alert Combat Kills 16 Follower Combat Kills 77 Entered Garrisons 400 Used RIF Installer 1000 MAIN.C Attacked Warlord 500 Friendly Fire -20 Cogmind --------- Core Integrity 0/1000 Matter 110/300 Energy 100/100 System Corruption 3% Temperature Cool (9) Movement Core (50) Location -4/Proximity Caves Parts ------- > --- POWER (1) -------- (None) > --- PROPULSION (5) --- (None) > --- UTILITY (8) ------ Visual Processing Unit Advanced Salvage Targeting Computer Relay Coupler [NC] (33) > --- WEAPON (3) ------- (None) > --- INVENTORY (4) ---- Light Angular Momentum Engine Compact Battery (300) Enhanced Gauss Cannon Heavy Shock Bomb Launcher Peak State ------------ > --- POWER ------------ Micro Fission Core > --- PROPULSION ------- Flexi-carbon Leg Flexi-carbon Leg Flexi-carbon Leg Nuclear Pulse Array > --- UTILITY ---------- Advanced Heat Sink Advanced Heat Sink Large Storage Unit Large Storage Unit Visual Processing Unit Advanced Salvage Targeting Computer Hardened Medium Armor Plating Relay Coupler [NC] > --- WEAPON ----------- Improved Remote Datajack Katana Lance > --- INVENTORY -------- Light Angular Momentum Engine Light Treads Carbon-fiber Leg Flexi-carbon Leg Compact Wheel Armored Huge Wheel Biomechanical Wings Advanced Heat Sink High-capacity Matter Pod Relay Coupler [NC] Enhanced Gauss Cannon Heavy Shock Bomb Launcher Long-range Missile Launcher Long-range Missile Launcher Improved Datajack [Rating: 78] Favorites ----------- Power Micro Fission Core Engine Light Ion Engine Power Core Micro Fission Core Reactor Improved Quantum Reactor Propulsion Flexi-carbon Leg Treads Light Treads Leg Flexi-carbon Leg Wheel Armored Wheel Flight Unit Nuclear Pulse Array Utility Large Storage Unit Device Advanced Heat Sink Storage Large Storage Unit Processor Visual Processing Unit Hackware Relay Coupler [NC] Protection Hardened Medium Armor Plating Weapon Katana Energy Gun Medium Laser Ballistic Gun Light Assault Rifle Launcher Long-range Missile Launcher Special Weapon Improved Remote Datajack Slashing Weapon Katana Piercing Weapon Lance Special Melee Weapon Improved Datajack Build | -11 -10 -10 -10 -9 -8 -7 -7 -6 -6 -5 -5 -5 -5 -4 ------- Run | Scr Mat Min Exi Min Mat Fac Gar Fac Gar Fac Upp Upp War Pro Slots Evolved 10 | . . . . . 4 2 . 2 . 2 . . . . Power . | . . . . . . . . . . . . . . . Propulsion 3 | . . . . . 1 1 . . . 1 . . . . Utility 6 | . . . . . 3 . . 2 . 1 . . . . Weapon 1 | . . . . . . 1 . . . . . . . . Parts Attached 102 | . 4 . 2 1 19 4 . 4 30 25 5 2 2 4 Power 12 | . 1 . . 1 3 1 . . 3 2 . . 1 . Engine 10 | . 1 . . 1 3 1 . . 3 1 . . . . Core 1 | . . . . . . . . . . 1 . . . . Reactor 1 | . . . . . . . . . . . . . 1 . Propulsion 29 | . 1 . . . 7 1 . 1 7 7 2 . 1 2 Treads 11 | . 1 . . . 6 1 . 1 2 . . . . . Leg 13 | . . . . . . . . . 5 6 2 . . . Wheel 3 | . . . . . 1 . . . . . . . 1 1 Hover . | . . . . . . . . . . . . . . . Flight 2 | . . . . . . . . . . 1 . . . 1 Utility 25 | . . . 2 . 4 . . 2 5 7 2 1 . 2 Device 5 | . . . . . . . . . 3 . . 1 . 1 Storage 3 | . . . 2 . . . . . . . 1 . . . Processor 4 | . . . . . . . . 1 1 1 1 . . . Hackware 4 | . . . . . . . . . . 3 . . . 1 Protection 9 | . . . . . 4 . . 1 1 3 . . . . Artifact . | . . . . . . . . . . . . . . . Weapon 36 | . 2 . . . 5 2 . 1 15 9 1 1 . . Energy Gun 6 | . . . . . 1 1 . . 3 1 . . . . Energy Cannon . | . . . . . . . . . . . . . . . Ballistic Gun 17 | . 1 . . . 3 1 . 1 7 3 1 . . . Ballistic Cannon . | . . . . . . . . . . . . . . . Launcher 7 | . 1 . . . . . . . 4 1 . 1 . . Special Weapon 1 | . . . . . . . . . . 1 . . . . Impact Weapon . | . . . . . . . . . . . . . . . Slashing Weapon 3 | . . . . . 1 . . . 1 1 . . . . Piercing Weapon 1 | . . . . . . . . . . 1 . . . . Special Melee Weapon 1 | . . . . . . . . . . 1 . . . . Unidentified Prototypes 2 | . . . . . . . . . . . . . 1 1 Parts Lost 66 | . . . . 1 6 1 . 1 24 14 2 6 5 6 Power 9 | . . . . 1 1 1 . . 2 2 . . 1 1 Propulsion 19 | . . . . . 2 . . . 7 4 1 2 1 2 Utility 15 | . . . . . . . . . 3 4 1 3 1 3 Weapon 23 | . . . . . 3 . . 1 12 4 . 1 2 . Highest Loss Streak 7 | . . . . 1 4 1 . 1 6 7 2 6 5 6 Average Slot Usage (%) 72 | . 85 85 87 100 78 97 100 91 78 87 84 69 51 52 Engine 3 | . 14 14 14 14 8 4 7 6 4 1 . . . . Core 2 | . . . . . . . . . . 2 5 5 4 . Treads 5 | . 3 14 14 14 18 23 23 20 6 2 . . . . Leg 8 | . 24 14 14 14 3 . . . 13 13 17 10 4 . Wheel 1 | . . . . . 5 7 7 6 2 . . . . 11 Device 2 | . . . . . . . . . 9 11 5 3 . 5 Storage 13 | . 14 14 16 28 18 15 15 13 13 11 15 12 11 11 Processor 7 | . . . . . . . . 4 6 6 13 13 11 11 Hackware 3 | . . . . . . . . . . 7 5 5 4 5 Protection 3 | . . . . . 10 23 23 20 4 3 . . . . Energy Gun 1 | . 8 . . . 1 7 7 6 2 1 . . . . Ballistic Gun 5 | . 18 14 14 14 11 11 15 12 9 3 4 2 . . Launcher 3 | . . 14 14 14 . . . . 2 . . 2 4 . Slashing Weapon 3 | . . . . . 1 2 . . . 4 5 5 4 . Naked Turns . | . . . . . . . . . . . . . . . Heaviest Build 74 | 10 11 11 39 39 54 56 55 67 74 61 50 52 49 50 Greatest Support 75 | 20 20 20 20 20 40 60 60 12 70 60 75 55 28 44 Greatest Overweight (x) 10 | . . . 1 1 4 4 4 5 6 2 1 2 10 1 Average Overweight (x) 1 | . . . . 1 2 2 3 4 1 . . 1 1 1 Largest Inventory Capacity 16 | . 6 6 16 16 16 16 16 16 16 16 16 16 16 16 Average Capacity 15 | . 6 6 8 16 16 16 16 16 16 16 16 16 16 15 Most Carried 16 | . 6 6 8 13 16 15 14 16 16 16 16 15 15 13 Average Carried 13 | . 5 6 6 10 13 14 14 15 13 12 14 14 14 9 Final Capacity 16 | 6 6 6 16 16 16 16 16 16 16 16 16 16 16 4 Final Carried 16 | 6 6 6 8 13 16 14 14 16 15 16 14 15 13 4 Class Distribution -------------------- 62% | Mutant 26% | Scavenger-Mutant 7% | Tank Dominant Class ---------------- Mutant | -10/Materials Mutant | -10/Mines Mutant | -10/Exiles Mutant | -9/Mines Scavenger-Mutant | -8/Materials Tank | -7/Factory Tank | -7/Garrison Tank | -6/Factory Scavenger-Gunner | -6/Garrison Scavenger-Mutant | -5/Factory Scavenger-Mutant | -5/Upper Caves Mutant | -5/Upper Caves Mutant | -5/Warlord Mutant | -4/Proximity Caves Resources | -11 -10 -10 -10 -9 -8 -7 -7 -6 -6 -5 -5 -5 -5 -4 ----------- Run | Scr Mat Min Exi Min Mat Fac Gar Fac Gar Fac Upp Upp War Pro Matter Collected 2490 | 200 28 . 220 80 306 85 6 . 399 915 213 38 . . Remotely . | . . . . . . . . . . . . . . . Salvage Created 2302 | . 69 . . 74 485 152 . . 666 748 70 38 . . Parts 161 | . 11 . . 17 30 8 . . 29 54 6 6 . . Haulers Intercepted 1 | . . . . . 1 . . . . . . . . . Recyclers Shooed 2 | . 1 . . . . . . . . 1 . . . . Parts Field Recycled . | . . . . . . . . . . . . . . . Retrieved Matter . | . . . . . . . . . . . . . . . Parts Self-Destructed 157 | . . . . . . . . . . . 6 4 147 . Prevented 20 | . . . . . . . . . . . . . 20 . Kills | -11 -10 -10 -10 -9 -8 -7 -7 -6 -6 -5 -5 -5 -5 -4 ------- Run | Scr Mat Min Exi Min Mat Fac Gar Fac Gar Fac Upp Upp War Pro Combat Hostiles Destroyed 58 | . 6 . . 7 8 3 . . 18 10 1 5 . . Melee 4 | . . . . . . . . . . 4 . . . . Guns 28 | . 4 . . . 8 3 . . 9 3 1 . . . AOE 26 | . 2 . . 7 . . . . 9 3 . 5 . . Classes Destroyed 12 | . 1 . . 2 3 . . . 3 3 . . . . Worker 5 | . . . . 1 . . . . . 4 . . . . Builder 7 | . . . . . . . . . . 7 . . . . Hauler 1 | . . . . . 1 . . . . . . . . . Recycler 1 | . . . . . . . . . . 1 . . . . Watcher 2 | . . . . . 1 . . . . 1 . . . . Swarmer 20 | . 6 . . 6 . . . . 3 . . 5 . . Grunt 21 | . . . . 1 5 3 . . 9 3 . . . . Brawler 1 | . . . . . . . . . 1 . . . . . Duelist 1 | . . . . . . . . . 1 . . . . . Sentry 6 | . . . . . 3 . . . 2 1 . . . . Hunter 6 | . . . . . . . . . 2 3 1 . . . Programmer 3 | . . . . . . . . . . 3 . . . . Best Kill Streak 11 | . 3 . . 4 2 2 . . 6 11 1 5 . . Combat Bots Only 6 | . 3 . . 3 2 2 . . 6 2 1 5 . . Max Kills in Single Turn 4 | . 1 . . 4 1 1 . . 3 4 1 3 . . Gunslinging . | . . . . . . . . . . . . . . . Exploded 3 | . 1 . . 3 . . . . 3 1 . 3 . . Melee 1 | . . . . . . . . . . 1 . . . . Uniques/NPCs Destroyed . | . . . . . . . . . . . . . . . Combat | -11 -10 -10 -10 -9 -8 -7 -7 -6 -6 -5 -5 -5 -5 -4 -------- Run | Scr Mat Min Exi Min Mat Fac Gar Fac Gar Fac Upp Upp War Pro Damage Taken 9340 | . 309 . . 159 884 187 . 46 3201 2399 256 268 1073 558 Core 1689 | . 40 . . 50 179 17 . . 372 354 . 16 455 206 Absorbed by Shields 25 | . . . . . . . . . 25 . . . . . Core Remaining (%) 76 | 100 . . . 64 67 . 97 . 56 . . . . . Volleys Fired 203 | . 19 . . 7 66 10 . . 62 25 11 2 1 . Largest 3 | . 2 . . 1 2 3 . . 3 3 1 1 1 . Hottest 120 | . 60 . . 30 88 93 . . 120 99 33 43 43 . Shots Fired 340 | . 36 . . 7 99 30 . . 108 46 11 2 1 . Gun 303 | . 34 . . . 99 30 . . 94 35 11 . . . Cannon . | . . . . . . . . . . . . . . . Launcher 34 | . 2 . . 7 . . . . 14 8 . 2 1 . Special 3 | . . . . . . . . . . 3 . . . . Kinetic 257 | . 24 . . . 89 20 . . 82 31 11 . . . Thermal 46 | . 10 . . . 10 10 . . 12 4 . . . . Explosive 34 | . 2 . . 7 . . . . 14 8 . 2 1 . Electromagnetic . | . . . . . . . . . . . . . . . Robot Hit Streak 20 | . 10 . . 5 13 10 . . 11 20 3 . . . Robot Miss Streak 4 | . 3 . . 1 4 2 . . 3 2 3 2 . . Penetration Max . | . . . . . . . . . . . . . . . Secondary Targets 2 | . . . . . . . . . 2 . . . . . Max Gunslinging Chain 1 | . . . . . . . . . 1 . . . . . Shots Hit Robots 276 | . 25 . . 6 74 21 . . 82 63 5 . . . Core Hits 175 | . 8 . . 9 28 9 . . 62 48 3 5 3 . Critical Hits 8 | . 1 . . . 2 . . . . 1 4 . . . Critical Kills 1 | . . . . . . . . . . . 1 . . . Critical Parts Destroyed 7 | . 1 . . . 2 . . . . 1 3 . . . Melee Attacks 45 | . . . . . 1 1 . . 1 38 . . 4 . Impact . | . . . . . . . . . . . . . . . Slashing 40 | . . . . . 1 1 . . 1 33 . . 4 . Piercing 2 | . . . . . . . . . . 2 . . . . Sneak Attacks 11 | . . . . . . 1 . . . 10 . . . . Combat Hostiles . | . . . . . . . . . . . . . . . Follow-up Attacks 1 | . . . . . . . . . . 1 . . . . Damage Inflicted 8450 | . 284 . . 475 854 331 . . 2506 3194 30 568 208 . Guns 3018 | . 195 . . . 823 219 . . 1232 519 30 . . . Cannons . | . . . . . . . . . . . . . . . Explosions 3937 | . 89 . . 463 . . . . 1274 1338 . 568 205 . Melee 1434 | . . . . . 28 111 . . . 1295 . . . . Ramming 61 | . . . . 12 3 1 . . . 42 . . 3 . Kinetic 2478 | . 136 . . . 703 131 . . 1034 444 30 . . . Thermal 607 | . 59 . . . 120 88 . . 198 142 . . . . Explosive 3870 | . 89 . . 463 . . . . 1274 1271 . 568 205 . Electromagnetic . | . . . . . . . . . . . . . . . Impact . | . . . . . . . . . . . . . . . Slashing 1223 | . . . . . 28 111 . . . 1084 . . . . Piercing 211 | . . . . . . . . . . 211 . . . . Highest Corruption 3 | . . . . . . . . 2 2 3 3 3 3 3 Average Corruption 2 | . . . . . . . . 1 2 2 3 3 3 3 Corruption Purged . | . . . . . . . . . . . . . . . Effects 95 | . . . . . . . . . 13 5 9 5 59 4 Message Errors 33 | . . . . . . . . . 6 1 1 2 21 2 Matter Fused 23 | . . . . . . . . . . 1 1 1 19 1 Heat Flow Errors 11 | . . . . . . . . . . 1 2 1 7 . Energy Discharges 8 | . . . . . . . . . 1 1 1 . 4 1 Data Loss (minor) 15 | . . . . . . . . . 1 1 4 1 8 . Targeting Errors 5 | . . . . . . . . . 5 . . . . . Overload Shots . | . . . . . . . . . . . . . . . Overflow Damage 622 | . . . . 45 . 76 . . 30 389 . 61 21 . Projectiles . | . . . . . . . . . . . . . . . Explosions 230 | . . . . 45 . . . . 30 73 . 61 21 . Melee 392 | . . . . . . 76 . . . 316 . . . . Knockbacks . | . . . . . . . . . . . . . . . Impact . | . . . . . . . . . . . . . . . Kinetic . | . . . . . . . . . . . . . . . Secondary . | . . . . . . . . . . . . . . . Self-Inflicted Damage 514 | . . . . . 1 . . . 323 9 . 112 69 . Shots 13 | . . . . . . . . . 10 . . 2 1 . Rammed 11 | . . . . 4 2 1 . . . 4 . . . . Targets Rammed 14 | . . . . 4 2 1 . . . 6 . . 1 . Kicked 3 | . . . . . . . . . . 2 . . 1 . Crushed . | . . . . . . . . . . . . . . . Highest Temperature 264 | . . . . 1 240 153 . . 153 109 142 264 230 . Average Temperature 73 | . . . . 1 81 57 . . 55 76 76 139 95 . Received Heat Transfer 1986 | . 24 . . 36 369 108 . . 768 378 . . 231 72 Effects 5 | . . . . . 2 . . . . . . . 3 . Energy Bleed 2 | . . . . . 2 . . . . . . . . . Interference 3 | . . . . . . . . . . . . . 3 . Siege Activations . | . . . . . . . . . . . . . . . Robots Corrupted . | . . . . . . . . . . . . . . . Combat Hostiles . | . . . . . . . . . . . . . . . Parts Fried . | . . . . . . . . . . . . . . . Impact Corruptions . | . . . . . . . . . . . . . . . Robots Melted . | . . . . . . . . . . . . . . . Combat Hostiles . | . . . . . . . . . . . . . . . Parts Melted 1 | . . . . . . 1 . . . . . . . . Heat Transferred 1189 | . 125 . . . 296 259 . . 311 198 . . . . Parts Sabotaged . | . . . . . . . . . . . . . . . Parts Stolen . | . . . . . . . . . . . . . . . Parts Stripped . | . . . . . . . . . . . . . . . Power Chain Reactions . | . . . . . . . . . . . . . . . Missiles Intercepted . | . . . . . . . . . . . . . . . Alert | -11 -10 -10 -10 -9 -8 -7 -7 -6 -6 -5 -5 -5 -5 -4 ------- Run | Scr Mat Min Exi Min Mat Fac Gar Fac Gar Fac Upp Upp War Pro Peak Influence 410 | . 192 74 . 206 251 195 136 71 327 410 . . . . Initial 171 | . . 74 . . 79 73 136 71 42 171 . . . . Average 122 | . 71 74 . 69 127 115 136 70 175 143 . . . . Maximum Alert Level 2 | . . . . 1 1 . . . 1 2 . . . . Low Security (%) 83 | . 100 100 . 95 95 100 100 100 62 68 . . . . Level 1 14 | . . . . 4 4 . . . 37 23 . . . . Level 2 1 | . . . . . . . . . . 7 . . . . Level 3 . | . . . . . . . . . . . . . . . Level 4 . | . . . . . . . . . . . . . . . Level 5 . | . . . . . . . . . . . . . . . High Security . | . . . . . . . . . . . . . . . Max Security . | . . . . . . . . . . . . . . . Squads Dispatched 13 | . . . . . 1 2 . 1 . 9 . . . . Investigation 5 | . . . . . . 1 . 1 . 3 . . . . Extermination 1 | . . . . . . . . . . 1 . . . . Reinforcement 7 | . . . . . 1 1 . . . 5 . . . . Assault . | . . . . . . . . . . . . . . . Garrison . | . . . . . . . . . . . . . . . Intercept . | . . . . . . . . . . . . . . . Construction Impeded 1 | . . . . . . . . . . 1 . . . . Haulers Reinforced 1 | . . . . . . . . . . 1 . . . . Stealth | -11 -10 -10 -10 -9 -8 -7 -7 -6 -6 -5 -5 -5 -5 -4 --------- Run | Scr Mat Min Exi Min Mat Fac Gar Fac Gar Fac Upp Upp War Pro Distress Signals 4 | . 1 . . . . . . 1 . 2 . . . . Communications Jammed . | . . . . . . . . . . . . . . . Distress Signals . | . . . . . . . . . . . . . . . Times Spotted 110 | . 10 . . 9 19 10 . 1 18 28 1 5 6 3 Peak Tracking Total 9 | . 4 . . 4 3 3 . 2 7 9 1 5 7 4 Tactical Retreats 2 | . . . . . 1 1 . . . . . . . . Traps | -11 -10 -10 -10 -9 -8 -7 -7 -6 -6 -5 -5 -5 -5 -4 ------- Run | Scr Mat Min Exi Min Mat Fac Gar Fac Gar Fac Upp Upp War Pro Traps Triggered 7 | . . . . . . . . 3 4 . . . . . Indirectly . | . . . . . . . . . . . . . . . Trap Hack Attempts . | . . . . . . . . . . . . . . . Triggered . | . . . . . . . . . . . . . . . Disarmed . | . . . . . . . . . . . . . . . Reprogrammed . | . . . . . . . . . . . . . . . Reused . | . . . . . . . . . . . . . . . Traps Extracted . | . . . . . . . . . . . . . . . Installed . | . . . . . . . . . . . . . . . Triggered 47 | . . . . . . . . . . . . . 47 . Machines | -11 -10 -10 -10 -9 -8 -7 -7 -6 -6 -5 -5 -5 -5 -4 ---------- Run | Scr Mat Min Exi Min Mat Fac Gar Fac Gar Fac Upp Upp War Pro Machines Disabled 9 | . 1 . . 3 1 . . . 1 3 . . . . Max in Single Turn 2 | . 1 . . 2 . . . . 1 2 . . . . Garrison Relay 1 | . . . . . . . . . 1 . . . . . Machines Sabotaged . | . . . . . . . . . . . . . . . Garrisons Compromised . | . . . . . . . . . . . . . . . Overloaded Fab Kills . | . . . . . . . . . . . . . . . Fab Network Shutdowns . | . . . . . . . . . . . . . . . Hacking | -11 -10 -10 -10 -9 -8 -7 -7 -6 -6 -5 -5 -5 -5 -4 --------- Run | Scr Mat Min Exi Min Mat Fac Gar Fac Gar Fac Upp Upp War Pro Machines Accessed 13 | . 1 . 1 . 2 2 . 2 . 5 . . . . Terminals 9 | . 1 . . . 2 1 . 1 . 4 . . . . Fabricators 1 | . . . . . . . . . . 1 . . . . Repair Stations . | . . . . . . . . . . . . . . . Recycling Units . | . . . . . . . . . . . . . . . Scanalyzers . | . . . . . . . . . . . . . . . Garrison Access 2 | . . . . . . 1 . 1 . . . . . . Total Hacks 41 | . 3 . 1 . 10 6 . 3 . 18 . . . . Successful 16 | . 2 . 1 . 4 2 . 1 . 6 . . . . Failed 25 | . 1 . . . 6 4 . 2 . 12 . . . . Catastrophic 7 | . . . . . 1 . . 1 . 5 . . . . Database Lockouts . | . . . . . . . . . . . . . . . Manual 25 | . . . . . 8 2 . 2 . 13 . . . . Terminals 34 | . 3 . . . 10 3 . 2 . 16 . . . . Fabricators 2 | . . . . . . . . . . 2 . . . . Repair Stations . | . . . . . . . . . . . . . . . Recycling Units . | . . . . . . . . . . . . . . . Scanalyzers . | . . . . . . . . . . . . . . . Garrison Access 4 | . . . . . . 3 . 1 . . . . . . Terminal Hacks 11 | . 2 . 1 . 2 1 . . . 5 . . . . Record 1 | . . . 1 . . . . . . . . . . . Part Schematic 3 | . . . . . 1 . . . . 2 . . . . Branch Access Points 3 | . 1 . . . 1 . . . . 1 . . . . Terminal Index 1 | . . . . . . . . . . 1 . . . . Fabricator Index 2 | . . . . . . 1 . . . 1 . . . . Patrol Status 1 | . 1 . . . . . . . . . . . . . Fabricator Hacks . | . . . . . . . . . . . . . . . Repair Station Hacks . | . . . . . . . . . . . . . . . Recycling Unit Hacks . | . . . . . . . . . . . . . . . Scanalyzer . | . . . . . . . . . . . . . . . Garrison Access Hacks 2 | . . . . . . 1 . 1 . . . . . . Unlock Access 2 | . . . . . . 1 . 1 . . . . . . Unauthorized Hacks 3 | . . . . . 2 . . . . 1 . . . . Terminals 3 | . . . . . 2 . . . . 1 . . . . Botnet 3 | . . . . . 2 . . . . 1 . . . . Fabricators . | . . . . . . . . . . . . . . . Repair Stations . | . . . . . . . . . . . . . . . Recycling Units . | . . . . . . . . . . . . . . . Scanalyzers . | . . . . . . . . . . . . . . . Garrison Access . | . . . . . . . . . . . . . . . Data Cores Recovered . | . . . . . . . . . . . . . . . Used . | . . . . . . . . . . . . . . . Hacking Detections 12 | . 1 . . . 2 2 . 2 . 5 . . . . Full Trace Events 5 | . . . . . . 1 . 1 . 3 . . . . Feedback Events . | . . . . . . . . . . . . . . . Feedback Blocked . | . . . . . . . . . . . . . . . Robot Schematics Acquired . | . . . . . . . . . . . . . . . Robots Built . | . . . . . . . . . . . . . . . Matter . | . . . . . . . . . . . . . . . Time . | . . . . . . . . . . . . . . . Total Robot Build Rating . | . . . . . . . . . . . . . . . Part Schematics Acquired 3 | . . . . . 1 . . . . 2 . . . . Parts Built . | . . . . . . . . . . . . . . . Matter . | . . . . . . . . . . . . . . . Time . | . . . . . . . . . . . . . . . Total Part Build Rating . | . . . . . . . . . . . . . . . Parts Repaired . | . . . . . . . . . . . . . . . Time . | . . . . . . . . . . . . . . . Parts Recycled . | . . . . . . . . . . . . . . . Recycled Matter . | . . . . . . . . . . . . . . . Retrieved Matter . | . . . . . . . . . . . . . . . Retrieved Components . | . . . . . . . . . . . . . . . Parts Scanalyzed . | . . . . . . . . . . . . . . . Part Schematics Acquired . | . . . . . . . . . . . . . . . Parts Damaged . | . . . . . . . . . . . . . . . Bothacking | -11 -10 -10 -10 -9 -8 -7 -7 -6 -6 -5 -5 -5 -5 -4 ------------ Run | Scr Mat Min Exi Min Mat Fac Gar Fac Gar Fac Upp Upp War Pro Used RIF Installer 2 | . . . . . . . 1 . 1 . . . . . Program Shield 1 | . . . . . . . . . 1 . . . . . Robots Hacked 2 | . . . . . . . . . . 2 . . . . Non-combat 2 | . . . . . . . . . . 2 . . . . Combat . | . . . . . . . . . . . . . . . Robot Hacks Applied 4 | . . . . . . . . . . 4 . . . . no_distress 1 | . . . . . . . . . . 1 . . . . purge_threat 1 | . . . . . . . . . . 1 . . . . map_route 1 | . . . . . . . . . . 1 . . . . formatsys_low 1 | . . . . . . . . . . 1 . . . . Relay Couplers Released 3 | . . . . . . . . . 3 . . . . . Machine Destruction 3 | . . . . . . . . . 3 . . . . . Attached 3 | . . . . . . . . . . 2 . . . 1 Robots Rewired 1 | . . . . . . . . . . 1 . . . . Allies Hacked 1 | . . . . . . . . . . 1 . . . . Hacks Repelled . | . . . . . . . . . . . . . . . Allies | -11 -10 -10 -10 -9 -8 -7 -7 -6 -6 -5 -5 -5 -5 -4 -------- Run | Scr Mat Min Exi Min Mat Fac Gar Fac Gar Fac Upp Upp War Pro Total Allies 4 | . . . . 2 . . . . . 2 . . . . Largest Group 2 | . . . . 2 2 . . . . 1 . . . . Highest-Rated Group 49 | . . . . 41 41 . . . . 49 . . . . Highest-Rated Ally 49 | . . . . 31 31 . . . . 49 . . . . Total Orders 6 | . . . . . . . . . . 6 . . . . STAY 3 | . . . . . . . . . . 3 . . . . FOLLOW 3 | . . . . . . . . . . 3 . . . . Ally Attacks 21 | . . . . 4 15 . . . . 2 . . . . Total Damage 351 | . . . . 83 208 . . . . 60 . . . . Kills 3 | . . . . 2 1 . . . . . . . . . Allies Corrupted . | . . . . . . . . . . . . . . . Allies Melted . | . . . . . . . . . . . . . . . Intel | -11 -10 -10 -10 -9 -8 -7 -7 -6 -6 -5 -5 -5 -5 -4 ------- Run | Scr Mat Min Exi Min Mat Fac Gar Fac Gar Fac Upp Upp War Pro Robot Analysis Total . | . . . . . . . . . . . . . . . Derelict Logs Recovered 6 | . . 1 . . . . . . . . 3 1 . 1 Drone Launches 1 | . . . . . . . . . . . . 1 . . Drone Recoveries . | . . . . . . . . . . . . . . . Exploration | -11 -10 -10 -10 -9 -8 -7 -7 -6 -6 -5 -5 -5 -5 -4 ------------- Run | Scr Mat Min Exi Min Mat Fac Gar Fac Gar Fac Upp Upp War Pro Turns Passed 8748 | . 172 69 287 704 691 256 140 296 764 1032 504 433 3163 237 Spaces Moved 3222 | 1 88 44 174 371 311 119 106 209 370 537 367 236 83 206 Core 1 | . . . . . . . . . . . . . 1 . Treads 990 | . 12 44 174 371 125 42 1 . 102 119 . . . . Legs 1337 | 1 76 . . . . . . . 165 418 367 236 74 . Wheels 894 | . . . . . 186 77 105 209 103 . . . 8 206 Hover . | . . . . . . . . . . . . . . . Flight . | . . . . . . . . . . . . . . . Fastest Speed 110 | 120 120 160 160 180 120 130 130 130 110 120 120 120 110 110 Average Speed 144 | 120 125 160 163 180 142 140 130 135 147 143 122 151 176 110 Slowest Speed 550 | 120 160 160 180 180 200 160 160 140 210 200 150 180 550 110 Overloaded Moves . | . . . . . . . . . . . . . . . Propulsion Burnouts . | . . . . . . . . . . . . . . . Robots Hopped . | . . . . . . . . . . . . . . . Cave-ins Triggered . | . . . . . . . . . . . . . . . Exploration Rate (%) 30 | 2 22 12 53 70 23 3 31 7 67 14 67 47 10 31 Regions Visited 14 Branch Regions 7 Pre-discovered Areas 4 | . . 1 1 1 . . . . . . 1 . . . Known Exits Taken 4 | . 1 . . . . 1 . 1 . 1 . . . . Unknown Exits Taken 8 | 1 . 1 1 1 1 . . . . . 1 1 1 . Scrap Searched 6 | . . . . 2 . . . . . . 3 1 . . Spaces Dug 3 | . . . . . . . . . . . . . 3 . Terrain Destroyed 244 | . 13 . . 24 . . . . 94 76 . 15 22 . Melee 3 | . . . . . . . . . . . . . 3 . Projectile 2 | . . . . . . . . . 2 . . . . . AOE 239 | . 13 . . 24 . . . . 92 76 . 15 19 . Terrain Rammed . | . . . . . . . . . . . . . . . Walls Destroyed . | . . . . . . . . . . . . . . . Machines Disabled . | . . . . . . . . . . . . . . . Actions | -11 -10 -10 -10 -9 -8 -7 -7 -6 -6 -5 -5 -5 -5 -4 --------- Run | Scr Mat Min Exi Min Mat Fac Gar Fac Gar Fac Upp Upp War Pro Total 6931 | . 116 43 176 397 471 185 108 221 487 703 408 308 3091 217 Wait 3272 | . 2 . . 9 48 50 3 . 2 57 26 68 3001 6 Move 3209 | . 87 43 173 370 310 118 105 209 369 536 366 235 82 206 Hop . | . . . . . . . . . . . . . . . Pick Up 39 | . 1 . 1 6 12 1 . 4 4 9 . 1 . . Fast Attach 41 | . 1 . 1 . 6 . . 3 19 8 2 . 1 . Attach 32 | . 1 . . 1 4 3 . . 7 9 2 . 1 4 Detach 2 | . . . . . . . . . . 1 . . . 1 Swap 29 | . 2 . 1 . 9 1 . 1 4 8 1 2 . . Drop 28 | . 3 . . . 13 . . 4 1 7 . . . . Fire 203 | . 19 . . 7 66 10 . . 62 25 11 2 1 . Melee 44 | . . . . . 1 1 . . 1 37 . . 4 . Ram 1 | . . . . . 1 . . . . . . . . . Kick 5 | . . . . . . . . . . 4 . . 1 . Crush 8 | . . . . 4 1 1 . . . 2 . . . . Escape Stasis 18 | . . . . . . . . . 18 . . . . . Rewire . | . . . . . . . . . . . . . . . Trap . | . . . . . . . . . . . . . . . Miscellaneous . | . . . . . . . . . . . . . . . Route ------- -11/Scrapyard -10/Materials -10/Mines -10/Exiles -9/Mines -8/Materials -7/Factory -7/Garrison -6/Factory -6/Garrison (discovered 2 exits: *Fac x2) -5/Factory (discovered 2 exits: *Upp x2) -5/Upper Caves -5/Upper Caves (discovered 2 exits: [*Fac] / [*War]) -5/Warlord -4/Proximity Caves History --------- Turn | Location | Event 1 | -11/Scrapyard | Discovered new exit (range 0) 1 | -11/Scrapyard | Entered Materials 10 | -10/Materials | Identified exit to Mines 173 | -10/Materials | Entered Mines 234 | -10/Mines | Deemed a non-threat by the Exiles lab entrance 236 | -10/Mines | Discovered new exit (range 5) 242 | -10/Mines | Entered Exiles 282 | -10/Exiles | Met 8R-AWN 308 | -10/Exiles | Met EX-HEX 314 | -10/Exiles | Build established: Mutant 385 | -10/Exiles | Met EX-DEC 425 | -10/Exiles | Learned location of Zion (-6) 515 | -10/Exiles | Discovered new exit (range 10) 529 | -10/Exiles | Entered Mines 695 | -9/Mines | Received a Rocket Launcher from a helpful Derelict 885 | -9/Mines | Learned location of Storage (-7) 1001 | -9/Mines | Found a hidden stash of uninstalled traps 1193 | -9/Mines | Discovered new exit (range 10) 1233 | -9/Mines | Entered Materials 1233 | -8/Materials | Accompanied by 2 allies 1233 | -8/Materials | Evolved 4 slots: Propulsion x1, Utility x3 1238 | -8/Materials | Led the pair of lost Derelicts to an unsafe place 1526 | -8/Materials | Lost 4 parts (2n2w) 1892 | -8/Materials | Discovered new exit (range 9) 1924 | -8/Materials | Entered Factory 1924 | -7/Factory | Evolved 2 slots: Propulsion x1, Weapon x1 2175 | -7/Factory | Identified exit to Garrison 2180 | -7/Factory | Entered Garrison 2236 | -7/Garrison | Triggered checkpoint 2285 | -7/Garrison | Discovered new exit (range 15) 2315 | -7/Garrison | Installed Relay Interface Framework 2320 | -7/Garrison | Entered Factory 2320 | -6/Factory | Evolved 2 slots: Utility x2 2323 | -6/Factory | Build established: Tank 2616 | -6/Factory | Identified exit to Garrison 2616 | -6/Factory | Entered Garrison 2682 | -6/Garrison | Triggered checkpoint 2749 | -6/Garrison | Lost 6 parts (1p2u3w) 2807 | -6/Garrison | Lost 6 parts (3n1u2w) 3001 | -6/Garrison | Lost 6 parts (1p2n3w) 3036 | -6/Garrison | Discovered new exit (range 12) 3131 | -6/Garrison | Lost 3 parts (1n2w) 3136 | -6/Garrison | Triggered checkpoint 3202 | -6/Garrison | Discovered new exit (range 9) 3230 | -6/Garrison | Expanded RIF knowledge: Program Shield 3280 | -6/Garrison | Triggered checkpoint 3321 | -6/Garrison | Lost 3 parts (1n2w) 3326 | -6/Garrison | Garrison Relay disabled 3380 | -6/Garrison | Entered Factory 3380 | -5/Factory | Evolved 2 slots: Propulsion x1, Utility x1 3517 | -5/Factory | Identified exit to Upper Caves 3575 | -5/Factory | Build established: Scavenger-Mutant 3691 | -5/Factory | Lost 7 parts (1p2n2u2w) 3965 | -5/Factory | Lost 3 parts (1u2w) 4412 | -5/Factory | Entered Upper Caves 4433 | -5/Upper Caves | Lost 3 parts (2n1u) 4611 | -5/Upper Caves | Learned Factory stockpile data 4669 | -5/Upper Caves | Learned location of Armory (-3) 4829 | -5/Upper Caves | Learned 12 Factory zone layouts 4904 | -5/Upper Caves | Discovered new exit (range 13) 4916 | -5/Upper Caves | Entered another Upper Caves area 4937 | -5/Upper Caves | Discovered new exit (range 15) 4968 | -5/Upper Caves | Learned 8 Factory zone layouts 5156 | -5/Upper Caves | Lost 6 parts (2n3u1w) 5331 | -5/Upper Caves | Discovered new exit (range 9) 5349 | -5/Upper Caves | Entered Warlord 5403 | -5/Warlord | Discovered new exit (range 8) 5427 | -5/Warlord | Build established: Mutant 6649 | -5/Warlord | Warlord's base attacked by MAIN.C 6999 | -5/Warlord | Warlord forces counterattacked 8484 | -5/Warlord | Spotted Striker 8492 | -5/Warlord | Core integrity fell below 50% 8508 | -5/Warlord | Core integrity fell below 20% 8512 | -5/Warlord | Entered Proximity Caves 8527 | -4/Proximity Caves | Lost 5 parts (1p1n1u2w) 8621 | -4/Proximity Caves | Learned Research emergency access door positions 8735 | -4/Proximity Caves | Spotted B-86 Titan 8736 | -4/Proximity Caves | Entered a huge 0b10 base via the front door 8749 | -4/Proximity Caves | Destroyed by B-86 Titan with Matter Neutralizer Last Messages --------------- 08693_ System corrupted: Matter fused (-6). 08724_ H,PK=TBXIO%RIIGA/PLVLB0F6=&TACM| 08736_ Penetrated by Slug. 08736_ Slug penetrates Wall. 08737_ Y-64 Sentinel: "UNAUTHORIZED DERELICT IN 0B10 PROXIMITY. ENGAGING." 08739_ Penetrated by Slug. 08741_ B-86 Titan activates siege mode. 08742_ Arm. Huge Wheel destroyed. 08742_ Lrg. Storage Unit destroyed. 08742_ Penetrated by Slug. 08742_ Imp. Quantum Reactor destroyed. 08742_ Slug penetrates L-61 Swordsman. 08743_ Lrg. Storage Unit destroyed. 08743_ Penetrated by Slug. 08743_ Com. Wheel destroyed. 08745_ Knocked back. 08745_ Penetrated by Slug. 08745_ Adv. Heat Sink destroyed. 08746_ Slug penetrates Reinforced Barrier. 08748_ Penetrated by Slug. Map ----- +----------------------------------------------------+ | ###### #?# #?????????????????????????????????? | | ##?# #?????????????????????????????????? | | ##??# #?????????????????????????????????? | | #### #???# #?????????????????????????????????? | | ???## #???# #?????????????????????????????????? | | ????## #??# #?????????????????????????????????? | | ?????### #??# #?????????????????????????????????? | | ???????# #### ##????????????????????????????????? | | ???????# #????????????????????????????????? | | ???????####### #????????????????????????????????? | | ???????????### ##???????? ???????????????????????? | | ???????##### #????????? ???????????????????????? | | ???????? # ##????????? ???????????????????????? | | ???????##### ##???????? ???????????????????????? | | ??????????# # ##??????? #??????????????????????? | | ??????????# #??????? ###????????????????????? | | ??????????## # ##??????? ?????????????????????? | | ??????????## ###???????# ??????????????????????? | | ??????????#" #?????????# #??????????????????????? | | ?? "??????# ##???###### #####??????????????????? | | ??" "##### ##??# #??????????????????? | | ?"" "" #??# ##?????????????????? | | ?" #### Y #?????????????????? | | """" # !%; #??????????????????? | | ???????# + #??????????????????? | | ???????# + @ ####???????????????? | | ???????# ## + l !// ????????? | | ???????##?## ; |] ????????? | | ???????????## #### ##########?????????? | | ????????????## ??# #??????????????????? | | ?????????????## ??# #??????????????????? | | ??????????????###??#####BB#####??????????????????? | | ???????????????????????#BB#??????????????????????? | | ???????????????????????####??????????????????????? | | ?????????????????????????????????????????????????? | | ?????????????????????????????????????????????????? | | ?????????????????????????????????????????????????? | | ?????????????????????????????????????????????????? | | ?????????????????????????????????????????????????? | | ?????????????????????????????????????????????????? | | ?????????????????????????????????????????????????? | | ?????????????????????????????????????????????????? | | ?????????????????????????????????????????????????? | | ?????????????????????????????????????????????????? | | ?????????????????????????????????????????????????? | | ?????????????????????????????????????????????????? | | ?????????????????????????????????????????????????? | | ?????????????????????????????????????????????????? | | ?????????????????????????????????????????????????? | | ?????????????????????????????????????????????????? | +----------------------------------------------------+ Best States ------------- Heat Dissipation 94 Energy Generation 29 Energy Capacity 470 Matter Stores 300 Matter Capacity 300 Sight Range 18 Terrain Scan Density 10 Armor Coverage 825 Propulsion Shielding 33 Evasion (%) 40 Core Analysis 6 Recoil Reduction 3 Salvage Targeting 5 Defensive Hacking 12 Relay Coupler Types 34 Relay Coupler Value 1 Item Schematics ----------------- Hcp. Storage Unit | -8/Materials | Hacked Adv. Sensor Array | -5/Factory | Hacked Adv. Signal Interpreter | -5/Factory | Hacked Robot Schematics ------------------ None Fabricated ------------ Nothing Alien Tech Used ----------------- None Achievements -------------- None Challenges ------------ None Game ------ Seed AlloyBarrageBiocell Manual? 0 Play Time 00:49:26 Cumulative 234.9 hours Start 2021.01.12 @ 19:13:55 End 2021.01.12 @ 20:08:34 Sessions 2 Manual Loads 0 Difficulty Rogue Special Mode None Game No. 216 Rogue 87 Adventurer 63 Explorer 66 Win Type - Total 14 Types 11/0/2/1/0/0/0/0/0 Lore% 72 Gallery% 81 Achievement% 63 Wizard Run 0 Options --------- ASCII 0 Keyboard 0 Movement Numpad Keybinds 0 Fullscreen 2 Font 18/TerminusBold Map View 76x50 Tactical HUD 1 Map Filters NONE Filters NONE Steam 1 RUN: dac894e5-dfa2-4645-b66e-63cb6a3b260a